Workbook

Sheet Лист1
A1: Школа | C1: МБОУ "Потапово Тумбарлинская ООШ им.Г.П.Евсеева" Бавлинского муниципального района РТ | F1: Утвердил: | G1: должность
A2: Типовое примерное меню приготавливаемых блюд | G2: фамилия | H2: Азабина Н.А.
A3: Возрастная категория | E3: 7-11 лет | G3: дата | H3: 1 | I3: 1 | J3: 2026
H4: день | I4: месяц | J4: год
A5: Неделя | B5: День недели | C5: Прием пищи | D5: Раздел меню | E5: Блюда | F5: Вес блюда, г | G5: Белки | H5: Жиры | I5: Углеводы | J5: Калорийность | K5: № рецептуры | L5: Цена
A6: 1 | B6: 1 | C6: Завтрак | D6: гор.блюдо | E6: Плов из птицы | F6: 200 | G6: 12.25 | H6: 15.37 | I6: 40.05 | J6: 361.3 | K6: 291
D7: салат | E7: Салат из белокочанной капусты | F7: 60 | G7: 2.99 | H7: 3.82 | I7: 4.7 | J7: 52.8 | K7: 45
D8: гор.напиток | E8: Чай черный с сахаром, лимоном | F8: 215 | G8: 0.13 | H8: 0.02 | I8: 15.2 | J8: 62 | K8: 377
D9: хлеб | E9: Хлеб пшеничный | F9: 30 | G9: 2.28 | H9: 0.24 | I9: 14.76 | J9: 70.2 | K9: 573
D10: хлеб | E10: Хлеб дарницкий | F10: 20 | G10: 1.6 | H10: 0.3 | I10: 8.02 | J10: 41.2 | K10: 574
D11: фрукты
D13: итого | F13: =SUM(F6:F12) -> 525 | G13: =SUM(G6:G12) -> 19.25 | H13: 19.75 | I13: 82.73 | J13: 587.5 | L13: 77.76
A14: =A6 -> 1 | B14: =B6 -> 1 | C14: Обед | D14: закуска
D15: 1 блюдо
D16: 2 блюдо
D17: гарнир
D18: напиток
D19: хлеб бел.
D20: хлеб черн.
D23: итого | F23: =SUM(F14:F22) -> 0 | G23: =SUM(G14:G22) -> 0 | H23: 0 | I23: 0 | J23: 0 | L23: =SUM(L14:L22) -> 0
A24: =A6 -> 1 | B24: =B6 -> 1 | C24: Итого за день: | F24: =F13+F23 -> 525 | G24: =G13+G23 -> 19.25 | H24: 19.75 | I24: 82.73 | J24: 587.5 | L24: =L13+L23 -> 77.76
A25: 1 | B25: 2 | C25: Завтрак | D25: гор.блюдо | E25: Картофельное пюре, тефтели говяжьи с соусом | F25: 240 | G25: 11.58 | H25: 16.9 | I25: 18.36 | J25: 216.97 | K25: 312, 279
D26: гор.напиток | E26: Компот из смеси сухофруктов | F26: 200 | G26: 1.16 | H26: 0.3 | I26: 12.7 | J26: 112.8 | K26: 349
D27: хлеб | E27: Хлеб пшеничный | F27: 30 | G27: 2.28 | H27: 0.24 | I27: 14.76 | J27: 70.2 | K27: 573
D28: хлеб | E28: Хлеб дарницкий | F28: 20 | G28: 1.6 | H28: 0.3 | I28: 8.02 | J28: 41.2 | K28: 574
D29: сладкое | E29: Печенье | F29: 40 | G29: 2.36 | H29: 1.88 | I29: 30 | J29: 146.4 | K29: 582
D30: фрукты
D31: итого | F31: =SUM(F25:F30) -> 530 | G31: =SUM(G25:G30) -> 18.98 | H31: =SUM(H25:H30) -> 19.62 | I31: =SUM(I25:I30) -> 83.84 | J31: =SUM(J25:J30) -> 587.57 | L31: 77.76
A32: =A25 -> 1 | B32: =B25 -> 2 | C32: Обед | D32: закуска
D33: 1 блюдо
D34: 2 блюдо
D35: гарнир
D36: напиток
D37: хлеб бел.
D38: хлеб черн.
D41: итого | F41: =SUM(F32:F40) -> 0 | G41: =SUM(G32:G40) -> 0 | H41: =SUM(H32:H40) -> 0 | I41: =SUM(I32:I40) -> 0 | J41: =SUM(J32:J40) -> 0 | L41: 0
A42: =A25 -> 1 | B42: =B25 -> 2 | C42: Итого за день: | F42: =F31+F41 -> 530 | G42: =G31+G41 -> 18.98 | H42: =H31+H41 -> 19.62 | I42: =I31+I41 -> 83.84 | J42: =J31+J41 -> 587.57 | L42: 77.76
A43: 1 | B43: 3 | C43: Завтрак | D43: гор.блюдо | E43: Макаронные изделия отварные с маслом, фрикадельки куриные в соусе | F43: 250 | G43: 14.84 | H43: 18.74 | I43: 36.11 | J43: 368.98 | K43: 203, 297
D44: гор.напиток | E44: Чай черный с сахаром | F44: 208 | G44: 0.07 | H44: 0.02 | I44: 15 | J44: 60 | K44: 376
D45: хлеб | E45: Хлеб пшеничный | F45: 30 | G45: 2.28 | H45: 0.24 | I45: 14.76 | J45: 70.2 | K45: 573
D46: хлеб | E46: Хлеб дарницкий | F46: 20 | G46: 1.6 | H46: 0.3 | I46: 8.02 | J46: 41.2 | K46: 574
D47: фрукты | E47: Фрукты свежие | F47: 100 | G47: 0.4 | H47: 0.4 | I47: 9.8 | J47: 47 | K47: 338
D49: итого | F49: =SUM(F43:F48) -> 608 | G49: =SUM(G43:G48) -> 19.19 | H49: =SUM(H43:H48) -> 19.7 | I49: =SUM(I43:I48) -> 83.69 | J49: =SUM(J43:J48) -> 587.38 | L49: 77.76
A50: =A43 -> 1 | B50: =B43 -> 3 | C50: Обед | D50: закуска
D51: 1 блюдо
D52: 2 блюдо
D53: гарнир
D54: напиток
D55: хлеб бел.
D56: хлеб черн.
D59: итого | F59: =SUM(F50:F58) -> 0 | G59: =SUM(G50:G58) -> 0 | H59: =SUM(H50:H58) -> 0 | I59: =SUM(I50:I58) -> 0 | J59: =SUM(J50:J58) -> 0 | L59: 0
A60: =A43 -> 1 | B60: =B43 -> 3 | C60: Итого за день: | F60: =F49+F59 -> 608 | G60: =G49+G59 -> 19.19 | H60: =H49+H59 -> 19.7 | I60: =I49+I59 -> 83.69 | J60: =J49+J59 -> 587.38 | L60: 77.76
A61: 1 | B61: 4 | C61: Завтрак | D61: гор.блюдо | E61: Гречка с курицей по-купечески | F61: 200 | G61: 12.02 | H61: 15.2 | I61: 40.28 | J61: 361.3 | K61: 370
D62: салат | E62: Салат из свеклы отварной | F62: 60 | G62: 0.84 | H62: 3.66 | I62: 4.56 | J62: 54.6 | K62: 52
D63: гор.напиток | E63: Чай черный с сахаром | F63: 208 | G63: 0.07 | H63: 0.02 | I63: 15 | J63: 60 | K63: 376
D64: хлеб | E64: Хлеб пшеничный | F64: 30 | G64: 2.28 | H64: 0.24 | I64: 14.76 | J64: 70.2 | K64: 573
D65: хлеб | E65: Хлеб дарницкий | F65: 20 | G65: 1.6 | H65: 0.3 | I65: 8.02 | J65: 41.2 | K65: 574
D66: фрукты
D68: итого | F68: =SUM(F61:F67) -> 518 | G68: =SUM(G61:G67) -> 16.81 | H68: =SUM(H61:H67) -> 19.42 | I68: =SUM(I61:I67) -> 82.62 | J68: =SUM(J61:J67) -> 587.3 | L68: 77.76
A69: =A61 -> 1 | B69: =B61 -> 4 | C69: Обед | D69: закуска
D70: 1 блюдо
D71: 2 блюдо
D72: гарнир
D73: напиток
D74: хлеб бел.
D75: хлеб черн.
D78: итого | F78: =SUM(F69:F77) -> 0 | G78: =SUM(G69:G77) -> 0 | H78: =SUM(H69:H77) -> 0 | I78: =SUM(I69:I77) -> 0 | J78: =SUM(J69:J77) -> 0 | L78: 0
A79: =A61 -> 1 | B79: =B61 -> 4 | C79: Итого за день: | F79: =F68+F78 -> 518 | G79: =G68+G78 -> 16.81 | H79: =H68+H78 -> 19.42 | I79: =I68+I78 -> 82.62 | J79: =J68+J78 -> 587.3 | L79: 77.76
A80: 1 | B80: 5 | C80: Завтрак | D80: гор.блюдо | E80: Рагу из птицы | F80: 200 | G80: 14.5 | H80: 17.54 | I80: 40.8 | J80: 348.2 | K80: 289
D81: салат | E81: Салат из моркови | F81: 60 | G81: 0.74 | H81: 1.128 | I81: 4.886 | J81: 49.02 | K81: 62
D82: гор.напиток | E82: Кисель | F82: 200 | G82: 0 | H82: 0 | I82: 15 | J82: 60 | K82: 484
D83: хлеб | E83: Хлеб пшеничный | F83: 30 | G83: 2.28 | H83: 0.24 | I83: 14.76 | J83: 70.2 | K83: 573
D84: хлеб | E84: Хлеб дарницкий | F84: 20 | G84: 1.6 | H84: 0.3 | I84: 8.02 | J84: 41.2 | K84: 574
D85: фрукты
D87: итого | F87: =SUM(F80:F86) -> 510 | G87: 19.12 | H87: =SUM(H80:H86) -> 19.208 | I87: =SUM(I80:I86) -> 83.466 | J87: =SUM(J80:J86) -> 568.62 | L87: 77.76
A88: =A80 -> 1 | B88: =B80 -> 5 | C88: Обед | D88: закуска
D89: 1 блюдо
D90: 2 блюдо
D91: гарнир
D92: напиток
D93: хлеб бел.
D94: хлеб черн.
D97: итого | F97: =SUM(F88:F96) -> 0 | G97: =SUM(G88:G96) -> 0 | H97: =SUM(H88:H96) -> 0 | I97: =SUM(I88:I96) -> 0 | J97: =SUM(J88:J96) -> 0 | L97: 0
A98: =A80 -> 1 | B98: =B80 -> 5 | C98: Итого за день: | F98: =F87+F97 -> 510 | G98: =G87+G97 -> 19.12 | H98: =H87+H97 -> 19.208 | I98: =I87+I97 -> 83.466 | J98: =J87+J97 -> 568.62 | L98: 77.76
A99: 1 | B99: 6 | C99: Завтрак | D99: гор.блюдо | E99: Макаронные изделия отварные с маслом, птица тушеная в соусе | F99: 250 | G99: 15.25 | H99: 17.27 | I99: 34.27 | J99: 349.93 | K99: 203, 290
D100: гор.напиток | E100: Чай черный с сахаром | F100: 208 | G100: 0.07 | H100: 0.02 | I100: 15 | J100: 60 | K100: 376
D101: хлеб | E101: Хлеб пшеничный | F101: 30 | G101: 2.28 | H101: 0.24 | I101: 14.76 | J101: 70.2 | K101: 573
D102: хлеб | E102: Хлеб дарницкий | F102: 20 | G102: 1.6 | H102: 0.3 | I102: 8.02 | J102: 41.2 | K102: 574
D103: фрукты
D105: итого | F105: =SUM(F99:F104) -> 508 | G105: =SUM(G99:G104) -> 19.2 | H105: =SUM(H99:H104) -> 17.83 | I105: =SUM(I99:I104) -> 72.05 | J105: =SUM(J99:J104) -> 521.33 | L105: 77.76
A106: =A99 -> 1 | B106: =B99 -> 6 | C106: Обед | D106: закуска
D107: 1 блюдо
D108: 2 блюдо
D109: гарнир
D110: напиток
D111: хлеб бел.
D112: хлеб черн.
D115: итого | F115: =SUM(F106:F114) -> 0 | G115: =SUM(G106:G114) -> 0 | H115: 0 | I115: 0 | J115: 0 | L115: =SUM(L106:L114) -> 0
A116: =A99 -> 1 | B116: =B99 -> 6 | C116: Итого за день: | F116: =F105+F115 -> 508 | G116: =G105+G115 -> 19.2 | H116: 17.83 | I116: 72.05 | J116: 521.33 | L116: =L105+L115 -> 77.76
A117: 2 | B117: 1 | C117: Завтрак | D117: гор.блюдо | E117: Каша вязкая молочная пшенная с маслом | F117: 205 | G117: 13.7 | H117: 17.51 | I117: 38.14 | J117: 314.25 | K117: 173
D118: гор.напиток | E118: Компот из смеси сухофруктов | F118: 200 | G118: 1.16 | H118: 0.3 | I118: 12.7 | J118: 112.8 | K118: 349
D119: хлеб | E119: Хлеб пшеничный | F119: 30 | G119: 2.28 | H119: 0.24 | I119: 14.76 | J119: 70.2 | K119: 573
D120: фрукты | E120: Фрукты свежие | F120: 100 | G120: 0.4 | H120: 0.4 | I120: 9.8 | J120: 47 | K120: 338
D121: хлеб | E121: Хлеб дарницкий | F121: 20 | G121: 1.6 | H121: 0.3 | I121: 8.02 | J121: 41.2 | K121: 574
D123: итого | F123: =SUM(F117:F122) -> 555 | G123: =SUM(G117:G122) -> 19.14 | H123: =SUM(H117:H122) -> 18.75 | I123: =SUM(I117:I122) -> 83.42 | J123: =SUM(J117:J122) -> 585.45 | L123: 77.76
A124: =A117 -> 2 | B124: =B117 -> 1 | C124: Обед | D124: закуска
D125: 1 блюдо
D126: 2 блюдо
D127: гарнир
D128: напиток
D129: хлеб бел.
D130: хлеб черн.
D133: итого | F133: =SUM(F124:F132) -> 0 | G133: =SUM(G124:G132) -> 0 | H133: 0 | I133: 0 | J133: 0 | L133: =SUM(L124:L132) -> 0
A134: =A117 -> 2 | B134: =B117 -> 1 | C134: Итого за день: | F134: =F123+F133 -> 555 | G134: =G123+G133 -> 19.14 | H134: =H123+H133 -> 18.75 | I134: =I123+I133 -> 83.42 | J134: =J123+J133 -> 585.45 | L134: 77.76
A135: 2 | B135: 2 | C135: Завтрак | D135: гор.блюдо | E135: Макаронные изделия отварные с маслом, фрикадельки куриные в соусе | F135: 250 | G135: 14.84 | H135: 18.74 | I135: 36.11 | J135: 368.98 | K135: 203, 297
D136: гор.напиток | E136: Чай черный с сахаром | F136: 208 | G136: 0.07 | H136: 0.02 | I136: 15 | J136: 60 | K136: 376
D137: хлеб | E137: Хлеб пшеничный | F137: 30 | G137: 2.28 | H137: 0.24 | I137: 14.76 | J137: 70.2 | K137: 573
D138: хлеб | E138: Хлеб дарницкий | F138: 20 | G138: 1.6 | H138: 0.3 | I138: 8.02 | J138: 41.2 | K138: 574
D140: итого | F140: =SUM(F135:F139) -> 508 | G140: =SUM(G135:G139) -> 18.79 | H140: =SUM(H135:H139) -> 19.3 | I140: =SUM(I135:I139) -> 73.89 | J140: =SUM(J135:J139) -> 540.38 | L140: 77.76
A141: =A135 -> 2 | B141: =B135 -> 2 | C141: Обед | D141: закуска
D142: 1 блюдо
D143: 2 блюдо
D144: гарнир
D145: напиток
D146: хлеб бел.
D147: хлеб черн.
D150: итого | F150: =SUM(F141:F149) -> 0 | G150: =SUM(G141:G149) -> 0 | H150: 0 | I150: 0 | J150: 0 | L150: =SUM(L141:L149) -> 0
A151: =A135 -> 2 | B151: =B135 -> 2 | C151: Итого за день: | F151: =F140+F150 -> 508 | G151: =G140+G150 -> 18.79 | H151: =H140+H150 -> 19.3 | I151: =I140+I150 -> 73.89 | J151: =J140+J150 -> 540.38 | L151: 77.76
A152: 2 | B152: 3 | C152: Завтрак | D152: гор.блюдо | E152: Рыба, тушенная в томате с овощами, картофельное пюре | F152: 250 | G152: 12.05 | H152: 17.58 | I152: 42.72 | J152: 356.65 | K152: 229.312
D153: гор.напиток | E153: Чай черный с сахаром, лимоном | F153: 215 | G153: 0.13 | H153: 0.02 | I153: 15.2 | J153: 62 | K153: 377
D154: хлеб | E154: Хлеб пшеничный | F154: 30 | G154: 2.28 | H154: 0.24 | I154: 14.76 | J154: 70.2 | K154: 573
D155: хлеб | E155: Хлеб дарницкий | F155: 20 | G155: 1.6 | H155: 0.3 | I155: 8.02 | J155: 41.2 | K155: 574
D157: итого | F157: =SUM(F152:F156) -> 515 | G157: =SUM(G152:G156) -> 16.06 | H157: =SUM(H152:H156) -> 18.14 | I157: =SUM(I152:I156) -> 80.7 | J157: =SUM(J152:J156) -> 530.05 | L157: 77.76
A158: =A152 -> 2 | B158: =B152 -> 3 | C158: Обед | D158: закуска
D159: 1 блюдо
D160: 2 блюдо
D161: гарнир
D162: напиток
D163: хлеб бел.
D164: хлеб черн.
D167: итого | F167: =SUM(F158:F166) -> 0 | G167: =SUM(G158:G166) -> 0 | H167: 0 | I167: 0 | J167: 0 | L167: =SUM(L158:L166) -> 0
A168: =A152 -> 2 | B168: =B152 -> 3 | C168: Итого за день: | F168: =F157+F167 -> 515 | G168: =G157+G167 -> 16.06 | H168: =H157+H167 -> 18.14 | I168: =I157+I167 -> 80.7 | J168: =J157+J167 -> 530.05 | L168: 77.76
A169: 2 | B169: 4 | C169: Завтрак | D169: гор.блюдо | E169: Гречка с курицей по-купечески | F169: 200 | G169: 12.02 | H169: 15.2 | I169: 40.28 | J169: 361.3 | K169: 370
D170: салат | E170: Салат из белокочанной капусты | F170: 60 | G170: 2.99 | H170: 3.82 | I170: 4.7 | J170: 52.8 | K170: 45
D171: гор.напиток | E171: Чай черный с сахаром | F171: 208 | G171: 0.07 | H171: 0.02 | I171: 15 | J171: 60 | K171: 376
D172: хлеб | E172: Хлеб пшеничный | F172: 30 | G172: 2.28 | H172: 0.24 | I172: 14.76 | J172: 70.2 | K172: 573
D173: хлеб | E173: Хлеб дарницкий | F173: 20 | G173: 1.6 | H173: 0.3 | I173: 8.02 | J173: 41.2 | K173: 574
D175: итого | F175: =SUM(F169:F174) -> 518 | G175: =SUM(G169:G174) -> 18.96 | H175: =SUM(H169:H174) -> 19.58 | I175: =SUM(I169:I174) -> 82.76 | J175: =SUM(J169:J174) -> 585.5 | L175: 77.76
A176: =A169 -> 2 | B176: =B169 -> 4 | C176: Обед | D176: закуска
D177: 1 блюдо
D178: 2 блюдо
D179: гарнир
D180: напиток
D181: хлеб бел.
D182: хлеб черн.
D185: итого | F185: =SUM(F176:F184) -> 0 | G185: =SUM(G176:G184) -> 0 | H185: 0 | I185: 0 | J185: 0 | L185: =SUM(L176:L184) -> 0
A186: =A169 -> 2 | B186: =B169 -> 4 | C186: Итого за день: | F186: =F175+F185 -> 518 | G186: =G175+G185 -> 18.96 | H186: =H175+H185 -> 19.58 | I186: =I175+I185 -> 82.76 | J186: =J175+J185 -> 585.5 | L186: 77.76
A187: 2 | B187: 5 | C187: Завтрак | D187: гор.блюдо | E187: Рагу из птицы | F187: 200 | G187: 14.5 | H187: 17.54 | I187: 40.8 | J187: 348.2 | K187: 289
D188: салат | E188: Салат из моркови | F188: 60 | G188: 0.74 | H188: 1.128 | I188: 4.886 | J188: 49.02 | K188: 62
D189: гор.напиток | E189: Кисель | F189: 200 | G189: 0 | H189: 0 | I189: 15 | J189: 60 | K189: 484
D190: хлеб | E190: Хлеб пшеничный | F190: 30 | G190: 2.28 | H190: 0.24 | I190: 14.76 | J190: 70.2 | K190: 573
D191: хлеб | E191: Хлеб дарницкий | F191: 20 | G191: 1.6 | H191: 0.3 | I191: 8.02 | J191: 41.2 | K191: 574
D193: итого | F193: =SUM(F187:F192) -> 510 | G193: 19.12 | H193: =SUM(H187:H192) -> 19.208 | I193: =SUM(I187:I192) -> 83.466 | J193: =SUM(J187:J192) -> 568.62 | L193: 77.76
A194: =A187 -> 2 | B194: =B187 -> 5 | C194: Обед | D194: закуска
D195: 1 блюдо
D196: 2 блюдо
D197: гарнир
D198: напиток
D199: хлеб бел.
D200: хлеб черн.
D203: итого | F203: =SUM(F194:F202) -> 0 | G203: =SUM(G194:G202) -> 0 | H203: 0 | I203: 0 | J203: 0 | L203: =SUM(L194:L202) -> 0
A204: =A187 -> 2 | B204: =B187 -> 5 | C204: Итого за день: | F204: =F193+F203 -> 510 | G204: =G193+G203 -> 19.12 | H204: 19.208 | I204: 83.466 | J204: 568.62 | L204: =L193+L203 -> 77.76
A205: 2 | B205: 6 | C205: Завтрак | D205: гор.блюдо | E205: Макаронные изделия отварные с маслом, птица тушеная в соусе | F205: 250 | G205: 15.25 | H205: 17.27 | I205: 34.27 | J205: 349.93 | K205: 203, 290
D206: гор.напиток | E206: Чай черный с сахаром | F206: 208 | G206: 0.07 | H206: 0.02 | I206: 15 | J206: 60 | K206: 376
D207: хлеб | E207: Хлеб пшеничный | F207: 30 | G207: 2.28 | H207: 0.24 | I207: 14.76 | J207: 70.2 | K207: 573
D208: хлеб | E208: Хлеб дарницкий | F208: 20 | G208: 1.6 | H208: 0.3 | I208: 8.02 | J208: 41.2 | K208: 574
D210: итого | F210: =SUM(F205:F209) -> 508 | G210: =SUM(G205:G209) -> 19.2 | H210: =SUM(H205:H209) -> 17.83 | I210: =SUM(I205:I209) -> 72.05 | J210: =SUM(J205:J209) -> 521.33 | L210: 77.76
A211: =A205 -> 2 | B211: =B205 -> 6 | C211: Обед | D211: закуска
D212: 1 блюдо
D213: 2 блюдо
D214: гарнир
D215: напиток
D216: хлеб бел.
D217: хлеб черн.
D220: итого | F220: =SUM(F211:F219) -> 0 | G220: =SUM(G211:G219) -> 0 | H220: 0 | I220: 0 | J220: 0 | L220: =SUM(L211:L219) -> 0
A221: =A205 -> 2 | B221: =B205 -> 6 | C221: Итого за день: | F221: =F210+F220 -> 508 | G221: =G210+G220 -> 19.2 | H221: 17.83 | I221: 72.05 | J221: 521.33 | L221: =L210+L220 -> 77.76
C222: Среднее значение за период: | F222: 6313 | G222: 223.82 | H222: 228.336 | I222: =(I24+I42+I60+I79+I98+I116+I134+I151+I168+I186+I204+I221)/(IF(I24=0,0,1)+IF(I42=0,0,1)+IF(I60=0,0,1)+IF(I79=0,0,1)+IF(I98=0,0,1)+IF(I116=0,0,1)+IF(I134=0,0,1)+IF(I151=0,0,1)+IF(I168=0,0,1)+IF(I186=0,0,1)+IF(I204=0,0,1)+IF(I221=0,0,1)) -> 80.39016667 | J222: 6771.03 | L222: =SUM(L221) -> 77.76
